fUSD/lending_fUSD_20260127
["ID","MTS","AMOUNT","RATE_DAILY","PERIOD"]
[403690614,1769483436035,-500.0,0.00020996,2]
[403690615,1769483436044,-500.0,0.00020996,2]
[403690616,1769483436053,-527.0,0.00020996,2]
[403690617,1769483436063,-725.32,0.00021,7]
[403690618,1769483436072,-207.74,0.00021,2]
[403690619,1769483436081,-350.0,0.00021,2]
[403690620,1769483436090,-152.0,0.00021011,9]
[403690621,1769483436099,-868.08,0.00021018,2]
[403690622,1769483436108,-1000.0,0.00021075,2]
[403690623,1769483436118,-1408.0,0.0002112,2]
[403690624,1769483436128,-3477.0,0.0002112,2]
[403690625,1769483436138,-615.0,0.0002112,2]
[403690626,1769483436147,-184.0,0.00021121,2]
[403690627,1769483436156,-916.0,0.00021121,2]
[403690628,1769483436166,-1204.0,0.00021121,2]
[403690629,1769483436175,-2442.0,0.00021121,2]
[403690630,1769483436185,-567.0,0.00021121,2]
[403690631,1769483436196,-567.0,0.00021131,4]
[403690632,1769483436206,-173.63,0.00021155,2]
[403690633,1769483436215,-500.0,0.0002116,10]
[403690634,1769483436224,-502.39531283,0.0002116,2]
[403690635,1769483436234,-225.18697532,0.00021169,2]
[403690636,1769483436243,-1062.33638913,0.00021169,2]
[403690637,1769483436253,-200.0,0.00021194,2]
[403690638,1769483436262,-587.33249287,0.00021226,2]
[403690639,1769483436271,-868.08,0.00021292,2]
[403690640,1769483436280,-166.66,0.00021299,2]
[403690641,1769483436289,-837.0,0.00021337,2]
[403690642,1769483436298,-2000.0,0.00021342,7]
[403690643,1769483436308,-150.0,0.00021413,2]
[403690644,1769483436317,-150.0,0.00021413,2]
[403690645,1769483436326,-152.0,0.00021433,10]
[403690646,1769483436335,-359.76179104,0.0002144,2]
[403690647,1769483436345,-1600.0,0.0002145,2]
[403690648,1769483436355,-200.0,0.00021459,2]
[403690649,1769483436364,-13125.0,0.00021499,2]
[403690650,1769483436373,-200.0,0.00021532,2]
[403690651,1769483436385,-1000.0,0.00021616,7]
[403690652,1769483436394,-1000.0,0.00021644,2]
[403690653,1769483436404,-233.51889341,0.00021717,2]
[403690654,1769483436414,-1101.64283553,0.00021717,2]
[403690655,1769483436423,-13125.0,0.00021721,2]
[403690656,1769483436432,-437.63883364,0.00021721,2]
[403690657,1769483436442,-567.0,0.00021758,5]
[403690658,1769483436451,-200.0,0.00021793,2]
[403690659,1769483436461,-587.33249287,0.00021845,2]
[403690660,1769483436470,-152.0,0.00021855,11]
[403690661,1769483436479,-251.30662414,0.00021863,2]
[403690662,1769483436489,-150.0,0.00021863,2]
[403690663,1769483436498,-200.0,0.00021867,2]
[403690664,1769483436507,-1000.0,0.00021881,2]
[403690665,1769483436517,-1400.0,0.0002189,7]
[403690666,1769483436526,-378.0,0.00021893,2]
[403690667,1769483436536,-378.0,0.00021895,2]
[403690668,1769483436546,-378.0,0.00021898,2]
[403690669,1769483436556,-1000.0,0.00021904,2]
[403690670,1769483436567,-378.0,0.0002191,2]
[403690671,1769483436576,-408.75445904,0.00021913,2]
[403690672,1769483436586,-378.0,0.00021915,2]
[403690673,1769483436595,-150.0,0.00021918,2]
[403690674,1769483436604,-5000.0,0.00021918,2]
[403690675,1769483436614,-800.0,0.00021918,4]
[403690676,1769483436623,-800.0,0.00021918,4]
[403690677,1769483436633,-800.0,0.00021918,4]
[403690678,1769483436643,-800.0,0.00021918,4]
[403690679,1769483436652,-800.0,0.00021918,4]
[403690680,1769483436662,-800.0,0.00021918,4]
[403690681,1769483436671,-800.0,0.00021918,4]
[403690682,1769483436680,-800.0,0.00021918,4]
[403690683,1769483436690,-1000.0,0.00021918,2]
[403690684,1769483436699,-500.0,0.00021918,2]
[403690685,1769483436708,-378.0,0.00021921,2]
[403690686,1769483436718,-378.0,0.00021926,2]
[403690687,1769483436727,-378.0,0.00021928,2]
[403690688,1769483436737,-2634.29375135,0.0002193,7]
[403690689,1769483436747,-378.0,0.00021931,2]
[403690690,1769483436756,-1000.0,0.00021933,2]
[403690691,1769483436766,-378.0,0.00021939,2]
[403690692,1769483436775,-2000.0,0.0002194,2]
[403690693,1769483436784,-2000.0,0.0002194,2]
[403690694,1769483436794,-2000.0,0.0002194,2]
[403690695,1769483436803,-13125.0,0.00021942,2]
[403690696,1769483436813,-378.0,0.00021949,2]
[403690697,1769483436822,-378.0,0.0002195,2]
[403690698,1769483436833,-378.0,0.00021951,2]
[403690699,1769483436843,-378.0,0.00021953,2]
[403690700,1769483436852,-378.0,0.00021955,2]
[403690701,1769483436862,-378.0,0.00021958,2]
[403690702,1769483436871,-166.66,0.00021959,2]
[403690703,1769483436880,-378.0,0.00021963,2]
[403690704,1769483436891,-200.0,0.00021968,2]
[403690705,1769483436901,-150.0,0.00021973,2]
[403690706,1769483436911,-252.26255728,0.00021973,2]
[403690707,1769483436920,-500.0,0.00021973,2]
[403690708,1769483436930,-500.0,0.00021973,2]
[403690709,1769483436939,-500.0,0.00021973,2]
[403690710,1769483436948,-500.0,0.00021973,2]
[403690711,1769483436958,-500.0,0.00021973,2]
[403690712,1769483436967,-500.0,0.00021973,2]
[403690713,1769483436976,-207.03035843,0.00021973,2]
[403690714,1769483436987,-500.0,0.00021973,2]
[403690715,1769483436997,-500.0,0.00021973,2]
[403690716,1769483437008,-500.0,0.00021973,2]
[403690717,1769483437017,-375.40383298,0.00021973,2]
[403690718,1769483437027,-500.0,0.00021973,2]
[403690719,1769483437037,-300.0,0.00021973,2]
[403690720,1769483437047,-500.0,0.00021973,2]
[403690721,1769483437056,-500.0,0.00021973,2]
[403690722,1769483437066,-500.0,0.00021973,2]
[403690723,1769483437075,-558.03857891,0.00021973,2]
[403690724,1769483437086,-500.0,0.00021973,2]
[403690725,1769483437096,-500.0,0.00021973,2]
[403690726,1769483437105,-376.48678126,0.00021973,2]
[403690727,1769483437114,-250.00276541,0.00021973,2]
[403690728,1769483437124,-166.52332118,0.00021973,2]
[403690729,1769483437134,-500.0,0.00021973,2]
[403690730,1769483437144,-500.0,0.00021973,2]
[403690731,1769483437154,-500.0,0.00021973,2]
[403690732,1769483437164,-500.0,0.00021973,2]
[403690733,1769483437174,-500.0,0.00021973,2]
[403690734,1769483437184,-500.0,0.00021973,2]
[403690735,1769483437194,-500.0,0.00021973,2]
[403690736,1769483437203,-500.81752935,0.00021973,2]
[403690737,1769483437213,-550.32309977,0.00021973,2]
[403690738,1769483437222,-378.0,0.00021985,2]
[403690739,1769483437231,-6496.66,0.00022,7]
[403690740,1769483437241,-378.0,0.00022013,2]
[403690741,1769483437250,-378.0,0.0002202,2]
[403690742,1769483437259,-378.0,0.00022021,2]
[403690743,1769483437269,-378.0,0.00022022,2]
[403690744,1769483437279,-205.68058605,0.00022027,2]
[403690745,1769483437288,-378.0,0.00022032,2]
[403690746,1769483437297,-378.0,0.00022032,2]
[403690747,1769483437306,-200.0,0.00022032,2]
[403690748,1769483437316,-378.0,0.00022044,2]
[403690749,1769483437325,-2000.0,0.00022053,2]
[403690750,1769483437334,-2000.0,0.00022053,2]
[403690751,1769483437343,-378.0,0.00022055,2]
[403690752,1769483437352,-378.0,0.00022059,2]
[403690753,1769483437362,-378.0,0.00022067,2]
[403690754,1769483437371,-378.0,0.00022073,2]
[403690755,1769483437382,-409.10218944,0.00022079,2]
[403690756,1769483437393,-378.0,0.00022082,2]
[403690757,1769483437403,-378.0,0.00022088,2]
[403690758,1769483437412,-150.0,0.000221,2]
[403690759,1769483437422,-378.0,0.000221,2]
[403690760,1769483437431,-187.88,0.000221,6]
[403690761,1769483437441,-378.0,0.00022109,2]
[403690762,1769483437451,-378.0,0.00022113,2]
[403690763,1769483437460,-535.34924609,0.0002212,30]
[403690764,1769483437470,-378.0,0.00022124,2]
[403690765,1769483437479,-378.0,0.00022138,2]
[403690766,1769483437489,-378.0,0.0002215,2]
[403690767,1769483437498,-150.00180595,0.00022151,16]
[403690768,1769483437507,-378.0,0.00022159,2]
[403690769,1769483437517,-378.0,0.00022162,2]
[403690770,1769483437527,-200.0,0.00022164,2]
[403690771,1769483437536,-152.0,0.00022164,2]
[403690772,1769483437545,-2000.0,0.00022164,2]
[403690774,1769483437556,-2000.0,0.00022164,2]
[403690775,1769483437566,-2000.0,0.00022164,2]
[403690776,1769483437575,-218.66651558,0.00022164,3]
[403690777,1769483437584,-13125.0,0.00022164,2]
[403690778,1769483437594,-1000.0,0.00022192,2]
[403690779,1769483437603,-289.38,0.00022237,2]
[403690780,1769483437612,-176.71502963,0.00022265,2]
[403690781,1769483437622,-1142.40362045,0.00022265,2]
[403690782,1769483437632,-152.0,0.00022277,12]
[403690783,1769483437641,-200.0,0.00022294,2]
[403690784,1769483437650,-218.71,0.0002231,2]
[403690785,1769483437660,-484.73,0.00022358,2]
[403690786,1769483437669,-969.46,0.00022358,2]
[403690787,1769483437680,-567.0,0.00022384,6]
[403690788,1769483437690,-13125.0,0.00022386,2]
[403690789,1769483437701,-200.0,0.00022386,2]
[403690790,1769483437712,-1226.12,0.00022402,2]
[403690791,1769483437723,-2000.0,0.00022438,7]
[403690792,1769483437732,-1000.0,0.00022466,2]
[403690793,1769483437742,-551.5,0.00022486,10]
[403690794,1769483437751,-300.79,0.00022494,2]
[403690795,1769483437760,-558.94,0.00022494,2]
[403690796,1769483437770,-405.49,0.00022495,2]
[403690797,1769483437779,-35502.1845086,0.000225,2]
[403690798,1769483437789,-69332.07464165,0.000225,7]
[403690799,1769483437798,-150.0,0.000225,2]
[403690800,1769483437807,-326.63399032,0.00022521,2]
[403690801,1769483437817,-502.06113295,0.00022521,2]
[403690802,1769483437829,-500.90508832,0.00022521,2]
[403690803,1769483437838,-500.53001106,0.00022521,2]
[403690804,1769483437847,-501.68734235,0.00022521,2]
[403690805,1769483437857,-501.04497332,0.00022521,2]
[403690806,1769483437866,-502.13529475,0.00022521,2]
[403690807,1769483437878,-173.06114673,0.00022521,2]
[403690808,1769483437888,-500.99662761,0.00022521,2]
[403690809,1769483437897,-501.51663727,0.00022521,2]
[403690810,1769483437909,-200.84296036,0.00022521,2]
[403690811,1769483437919,-292.5328787,0.00022521,2]
[403690812,1769483437928,-500.55445715,0.00022521,2]
[403690813,1769483437938,-501.43163729,0.00022521,2]
[403690814,1769483437953,-1000.77621517,0.00022521,2]
[403690815,1769483437963,-1000.0,0.00022521,2]
[403690816,1769483437972,-1000.0,0.00022521,2]
[403690817,1769483437982,-501.59267881,0.00022521,2]
[403690818,1769483437991,-368.62226232,0.00022521,2]
[403690819,1769483438001,-167.68777067,0.00022521,2]
[403690820,1769483438010,-1001.07369405,0.00022521,2]
[403690821,1769483438019,-575.46533018,0.00022521,2]
[403690822,1769483438028,-501.12716052,0.00022521,2]
[403690823,1769483438038,-1775.7,0.000226,7]
[403690824,1769483438047,-916.5,0.000226,4]
[403690825,1769483438057,-255.54493554,0.000226,2]
[403690826,1769483438067,-151.0,0.000226,2]
[403690827,1769483438076,-2389.89153801,0.000226,2]
[403690828,1769483438085,-13125.0,0.00022607,2]
[403690829,1769483438094,-166.66,0.00022618,2]
[403690830,1769483438104,-200.0,0.00022677,2]
[403690832,1769483438113,-200.0,0.00022677,2]
[403690834,1769483438122,-152.0,0.00022699,13]
[403690836,1769483438132,-523.33061663,0.0002271,2]
[403690838,1769483438141,-1000.0,0.00022712,7]
[403690840,1769483438150,-16783.0,0.0002274,2]
[403690842,1769483438159,-1000.0,0.0002274,2]
[403690844,1769483438168,-285.5,0.00022747,2]
[403690846,1769483438177,-373.07297731,0.00022809,2]
[403690848,1769483438187,-621.78829552,0.00022811,2]
[403690850,1769483438196,-3543.0,0.00022811,2]
[403690852,1769483438206,-747.8093786,0.00022811,2]
[403690853,1769483438215,-1184.6725544,0.00022813,2]
[403690854,1769483438225,-13125.0,0.00022829,2]
[403690855,1769483438234,-4014.16124919,0.000229,2]
[403690856,1769483438243,-521.50548501,0.00022973,2]
[403690857,1769483438252,-150.0,0.00022973,2]
[403690858,1769483438261,-1400.0,0.00022986,7]
[403690859,1769483438271,-100222.08682557,0.00023,2]
[403690860,1769483438281,-1008.10582878,0.00023,2]
[403690861,1769483438290,-152768.36701072,0.00023,2]
[403690862,1769483438300,-4104.85581807,0.00023,2]
[403690863,1769483438309,-20103.5473419,0.00023,2]
[403690864,1769483438320,-400.0,0.00023,2]
[403690865,1769483438329,-376.0,0.00023,7]
[403690866,1769483438338,-283.0,0.00023,7]
[403690867,1769483438348,-150.0,0.00023,2]
[403690868,1769483438357,-567.0,0.0002301,6]
[403690869,1769483438367,-1000.0,0.00023014,2]
[403690870,1769483438377,-151.0,0.00023058,2]
[403690871,1769483438387,-1500.0,0.00023068,2]
[403690872,1769483438397,-1003.61960293,0.00023068,2]
[403690873,1769483438406,-6496.66,0.000231,7]
[403690874,1769483438415,-200.0,0.00023113,2]
[403690875,1769483438424,-152.0,0.00023122,14]
[403690876,1769483438433,-1000.0,0.00023183,2]
[403690877,1769483438442,-381.02130663,0.000232,2]
[403690878,1769483438451,-166.66,0.00023278,2]
[403690879,1769483438460,-376.0,0.00023288,7]
[403690880,1769483438469,-283.0,0.00023288,7]
[403690881,1769483438479,-1000.0,0.00023288,2]
[403690882,1769483438488,-558.94,0.00023316,2]
[403690883,1769483438497,-150.0,0.00023316,2]
[403690884,1769483438507,-150.0,0.00023316,2]
[403690885,1769483438516,-558.94,0.00023316,2]
[403690886,1769483438525,-150.0,0.00023316,2]
[403690887,1769483438535,-558.94,0.00023316,2]
[403690888,1769483438544,-150.0,0.00023316,2]
[403690889,1769483438554,-150.0,0.00023316,2]
[403690890,1769483438563,-179.98,0.00023316,2]
[403690891,1769483438572,-1117.88,0.00023316,2]
[403690892,1769483438582,-151.41,0.00023316,2]
[403690893,1769483438591,-179.98,0.00023316,2]
[403690894,1769483438600,-864.53,0.00023316,2]
[403690895,1769483438610,-179.98,0.00023316,2]
[403690896,1769483438619,-945.75,0.00023316,2]
[403690897,1769483438629,-468.76,0.00023316,2]
[403690898,1769483438638,-179.98,0.00023316,2]
[403690899,1769483438647,-937.52,0.00023316,2]
[403690900,1769483438657,-179.98,0.00023316,2]
[403690901,1769483438666,-468.76,0.00023316,2]
[403690902,1769483438675,-468.76,0.00023316,2]
[403690903,1769483438685,-179.98,0.00023316,2]
[403690904,1769483438695,-179.98,0.00023316,2]
[403690905,1769483438704,-468.76,0.00023316,2]
[403690906,1769483438714,-179.98,0.00023316,2]
[403690907,1769483438723,-468.76,0.00023316,2]
[403690908,1769483438733,-468.76,0.00023316,2]
[403690909,1769483438742,-172.23,0.00023317,2]
[403690910,1769483438752,-348.13,0.00023317,2]
[403690911,1769483438761,-179.98,0.00023317,2]
[403690912,1769483438771,-1228.50543892,0.00023361,2]
[403690913,1769483438781,-155.0,0.00023373,2]
[403690914,1769483438791,-2000.0,0.000234,2]
[403690915,1769483438800,-1000.0,0.000234,2]
[403690916,1769483438809,-200.0,0.000235,2]
[403690917,1769483438818,-250.0,0.00023521,2]
[403690918,1769483438830,-150.00180595,0.00023528,21]
[403690919,1769483438840,-2000.0,0.00023534,7]
[403690920,1769483438849,-152.0,0.00023544,15]
[403690921,1769483438859,-376.0,0.00023562,7]
[403690922,1769483438869,-1000.0,0.00023562,2]
[403690923,1769483438879,-1600.0,0.00023595,2]
[403690924,1769483438888,-2000.0,0.00023616,2]
[403690925,1769483438897,-567.0,0.00023636,7]
[403690926,1769483438906,-285.5,0.00023695,2]
[403690927,1769483438916,-659.15315271,0.00023719,2]
[403690928,1769483438926,-1000.0,0.00023808,7]
[403690929,1769483438935,-3874.52,0.00023812,2]
[403690930,1769483438945,-376.0,0.00023836,7]
[403690931,1769483438955,-1000.0,0.00023836,2]
[403690932,1769483438964,-3564.2871,0.0002393,7]
[403690933,1769483438973,-200.0,0.00023941,2]
[403690934,1769483438984,-152.0,0.00023966,16]
[403690935,1769483438993,-16699.8666378,0.00024,2]
[403690936,1769483439002,-1021.56305601,0.00024,2]
[403690937,1769483439012,-3600.0,0.00024,2]
[403690938,1769483439022,-1235.43319137,0.00024,2]
[403690939,1769483439031,-10376.62886811,0.00024,14]
[403690940,1769483439042,-176.05344061,0.00024,3]
[403690941,1769483439051,-251.49925824,0.00024,3]
[403690942,1769483439061,-150.0,0.00024,2]
[403690943,1769483439071,-350.0,0.00024068,2]
[403690944,1769483439080,-376.0,0.0002411,7]
[403690945,1769483439322,-1000.0,0.0002411,2]
[403690946,1769483439332,-1408.0,0.0002412,2]
[403690947,1769483439341,-3477.0,0.0002412,2]
[403690948,1769483439350,-615.0,0.0002412,2]
[403690949,1769483439360,-184.0,0.00024121,2]
[403690950,1769483439370,-916.0,0.00024121,2]
[403690951,1769483439379,-1204.0,0.00024121,2]
[403690952,1769483439389,-2442.0,0.00024121,2]
[403690953,1769483439398,-567.0,0.00024121,2]
[403690954,1769483439407,-468.76,0.00024138,2]
[403690955,1769483439416,-468.76,0.00024139,2]
[403690956,1769483439426,-937.29,0.00024139,2]
[403690957,1769483439434,-283.0,0.00024164,7]
[403690958,1769483439443,-376.0,0.00024164,7]
[403690959,1769483439454,-270.09402166,0.00024164,2]
[403690960,1769483439464,-386.87667747,0.00024178,2]
[403690961,1769483439473,-6496.66,0.000242,7]
[403690962,1769483439483,-422.07994096,0.0002421,2]
[403690963,1769483439492,-3697.36042719,0.0002421,2]
[403690964,1769483439502,-945.98,0.00024225,30]
[403690965,1769483439511,-150.0,0.00024238,2]
[403690966,1769483439520,-156.13,0.00024238,2]
[403690967,1769483439531,-150.55,0.00024238,2]
[403690968,1769483439542,-150.0,0.00024238,2]
[403690969,1769483439552,-150.0,0.00024238,2]
[403690970,1769483439561,-150.0,0.00024238,2]
[403690971,1769483439571,-150.0,0.00024238,2]
[403690972,1769483439580,-567.0,0.00024263,7]
[403690973,1769483439590,-7067.79,0.00024315,2]
[403690974,1769483439600,-1000.0,0.00024384,2]
[403690975,1769483439610,-152.0,0.00024388,17]
[403690976,1769483439619,-315.21189956,0.000246,120]
[403690977,1769483439630,-543.09372386,0.00024616,2]
[403690978,1769483439640,-164.04578201,0.0002463,2]
[403690979,1769483439651,-237.19753309,0.0002463,2]
[403690980,1769483439661,-285.5,0.00024643,2]
[403690981,1769483439671,-597.74900752,0.0002465,2]
[403690982,1769483439681,-167.68801769,0.0002465,2]
[403690983,1769483439691,-158.0,0.00024658,2]
[403690984,1769483439701,-158.17091211,0.00024658,2]
[403690985,1769483439710,-158.0,0.00024658,2]
[403690986,1769483439720,-158.0,0.00024658,2]
[403690987,1769483439729,-158.0,0.00024658,2]
[403690988,1769483439739,-158.0,0.00024658,2]
[403690989,1769483439749,-164.5754008,0.00024658,2]
[403690990,1769483439759,-1000.0,0.00024658,2]
[403690991,1769483439768,-1531.28,0.00024658,2]
[403690992,1769483439780,-150.0,0.00024658,2]
[403690993,1769483439789,-1000.0,0.00024658,2]
[403690994,1769483439799,-241.78354925,0.0002479,2]
[403690995,1769483439810,-198.61,0.000248,2]
[403690996,1769483439820,-322.91341,0.000248,7]
[403690997,1769483439830,-322.91341,0.000248,7]
[403690998,1769483439843,-322.91341,0.000248,7]
[403690999,1769483439854,-322.91341,0.000248,7]
[403691000,1769483439864,-4102.676546,0.000248,7]
[403691001,1769483439876,-283.781921,0.000248,7]
[403691002,1769483439885,-4102.676546,0.000248,7]
[403691003,1769483439895,-283.781921,0.000248,7]
[403691004,1769483439909,-4102.676546,0.000248,7]
[403691005,1769483439919,-283.781921,0.000248,7]
[403691006,1769483439931,-4102.676546,0.000248,7]
[403691007,1769483439940,-283.781921,0.000248,7]
[403691008,1769483439950,-151.0,0.000248,7]
[403691009,1769483439963,-151.0,0.000248,7]
[403691010,1769483439973,-608907.581158,0.000248,3]
[403691011,1769483439982,-151.0,0.000248,7]
[403691012,1769483439991,-151.0,0.000248,7]
[403691013,1769483440001,-151.0,0.000248,7]
[403691014,1769483440012,-151.0,0.000248,7]
[403691015,1769483440022,-151.0,0.000248,7]
[403691016,1769483440031,-151.0,0.000248,7]
[403691017,1769483440041,-151.0,0.000248,7]
[403691018,1769483440050,-151.0,0.000248,7]
[403691019,1769483440061,-151.0,0.000248,7]
[403691020,1769483440071,-151.0,0.000248,7]
[403691021,1769483440081,-151.0,0.000248,7]
[403691022,1769483440092,-471.851472,0.000248,7]
[403691023,1769483440103,-471.851472,0.000248,7]
[403691024,1769483440112,-471.851472,0.000248,7]
[403691025,1769483440122,-471.851472,0.000248,7]
[403691026,1769483440133,-152.0,0.0002481,18]
[403691027,1769483440143,-1031.30772326,0.00024864,2]
[403691028,1769483440151,-150.0,0.00024873,2]
[403691029,1769483440160,-4014.16124919,0.00024877,2]
[403691030,1769483440169,-567.0,0.00024889,8]
[403691031,1769483440179,-6501.62,0.000249,2]
[403691032,1769483440188,-153.442655,0.000249,7]
[403691034,1769483440198,-151.0,0.000249,7]
[403691036,1769483440207,-151.0,0.000249,7]
[403691038,1769483440216,-268.820105,0.000249,7]
[403691040,1769483440226,-151.0,0.000249,7]
[403691042,1769483440235,-268.820105,0.000249,7]
[403691044,1769483440244,-151.0,0.000249,7]
[403691046,1769483440253,-268.820105,0.000249,7]
[403691048,1769483440262,-151.0,0.000249,7]
[403691050,1769483440271,-268.820105,0.000249,7]
[403691052,1769483440280,-151.0,0.000249,7]
[403691054,1769483440290,-1000.0,0.00024904,7]
[403691056,1769483440300,-150.00180595,0.00024904,25]
[403691058,1769483440310,-216.0,0.0002493,30]
[403691060,1769483440319,-1000.0,0.00024932,2]
[403691062,1769483440328,-150.0,0.0002496,2]
[403691064,1769483440338,-150.0,0.0002496,2]
[403691066,1769483440347,-8495.85,0.0002498,2]
[403691068,1769483440357,-151.0,0.0002498,7]
[403691070,1769483440366,-1112.04726818,0.00025,2]
[403691072,1769483440374,-207.17564854,0.00025,2]
[403691074,1769483440383,-1781.86510008,0.00025,2]
[403691076,1769483440392,-465.93529066,0.00025,2]
[403691078,1769483440402,-540.0,0.00025,2]
[403691080,1769483440411,-609.91761199,0.00025,2]
[403691083,1769483440420,-3039.37495331,0.00025,2]
[403691085,1769483440429,-7114.02522461,0.00025,2]
[403691087,1769483440438,-1062.87970351,0.00025,2]
[403691089,1769483440447,-167.05241584,0.00025,2]
[403691091,1769483440458,-8939.73750483,0.00025,5]
[403691093,1769483440467,-531.0,0.00025,5]
[403691095,1769483440476,-1000.0,0.00025,2]
[403691096,1769483440485,-2546.88,0.00025,2]
[403691097,1769483440494,-170.69180745,0.00025,5]
[403691098,1769483440504,-999.84164799,0.00025,2]
[403691099,1769483440513,-151.0,0.00025,2]
[403691100,1769483440522,-1000.0,0.00025,2]
[403691101,1769483440531,-1110.26010192,0.00025,60]
[403691102,1769483440541,-391.07864596,0.00025,60]
[403691103,1769483440551,-722.92843965,0.00025,30]
[403691104,1769483440560,-150.0,0.00025,2]
[403691105,1769483440569,-250.0,0.00025,17]
[403691106,1769483440579,-450.0,0.00025,2]
[403691107,1769483440588,-151.0,0.00025,7]
[403691108,1769483440598,-151.0,0.00025,7]
[403691110,1769483440608,-151.0,0.00025,7]
[403691111,1769483440617,-151.0,0.00025,7]
[403691112,1769483440627,-151.0,0.00025,7]
[403691113,1769483440636,-151.0,0.00025,7]
[403691114,1769483440646,-150.0,0.00025,2]
[403691115,1769483440655,-1400.0,0.00025178,7]
[403691116,1769483440665,-1000.0,0.00025205,2]
[403691117,1769483440674,-152.0,0.00025232,19]
[403691118,1769483440683,-1000.0,0.0002529,2]
[403691119,1769483440693,-376.0,0.00025373,7]
[403691120,1769483440702,-381.0,0.00025373,7]
[403691121,1769483440711,-284.0,0.00025373,7]
[403691123,1769483440720,-49444.0216892,0.0002539,2]
[403691125,1769483440729,-6496.66,0.000254,7]
[403691126,1769483440739,-250.3003453,0.00025421,2]
[403691127,1769483440748,-1000.0,0.00025479,2]
[403691128,1769483440757,-567.0,0.00025515,9]
[403691129,1769483440767,-401.19111454,0.00025547,2]
[403691130,1769483440776,-644.79446246,0.0002555,2]
[403691131,1769483440785,-3543.0,0.0002555,2]
[403691132,1769483440794,-775.47832561,0.0002555,2]
[403691133,1769483440803,-285.5,0.00025591,2]
[403691134,1769483440813,-152.0,0.00025654,20]
[403691135,1769483440822,-2000.0,0.00025726,7]
[403691136,1769483440834,-1600.0,0.0002574,120]
[403691137,1769483440843,-1000.0,0.00025753,2]
[403691138,1769483440852,-150.0,0.00025782,2]
[403691139,1769483440861,-150.0,0.00025782,2]
[403691140,1769483440871,-150.0,0.00025783,2]
[403691141,1769483440880,-168.55303286,0.000258,2]
[403691142,1769483440889,-500.0,0.000258,30]
[403691143,1769483440899,-1000.0,0.00025864,2]
[403691144,1769483440908,-6501.62,0.000259,2]
[403691145,1769483440918,-599.86438274,0.0002599,2]
[403691146,1769483440927,-216.13676815,0.00026,2]
[403691147,1769483440937,-4515.02898799,0.00026,2]
[403691148,1769483440946,-151.0,0.00026,2]
[403691149,1769483440955,-5147.6446461,0.00026,10]
[403691150,1769483440964,-150.0,0.00026,2]
[403691151,1769483440973,-1000.0,0.00026,7]
[403691152,1769483440982,-150.0,0.00026,2]
[403691153,1769483440991,-1000.0,0.00026027,2]
[403691154,1769483441000,-180.0,0.00026033,2]
[403691155,1769483441009,-152.0,0.00026076,21]
[403691156,1769483441018,-567.0,0.00026141,9]
[403691157,1769483441027,-151.0,0.000262,7]
[403691158,1769483441037,-151.0,0.000262,7]
[403691159,1769483441046,-151.0,0.000262,7]
[403691160,1769483441055,-280.337481,0.000262,7]